[Event "FIDE WYCC Girls U14 2023"]
[Site "Montesilvano"]
[Date "2023.11.14"]
[Round "2.27"]
[White "Chukuyeva, Mariya"]
[Black "Piddubna, Bozhena"]
[Result "0-1"]
[ECO "A45"]
[WhiteElo "1173"]
[BlackElo "2081"]
[Annotator "NA"]
[PlyCount "144"]
[EventDate "2023.11.13"]
[EventType "swiss"]
[EventCountry "ITA"]
[SourceTitle "playchess.com"]
[Source "ChessBase"]
[SourceQuality "1"]
[TimeControl "40/5400+30:1800+30"]

1. d4 {[%emt 0:00:04]} Nf6 {[%emt 0:00:15]} 2. Bf4 {[%emt 0:00:23]} d5 {[%emt 0:00:23]} 3. e3 {[%emt 0:00:23]} e6 {[%emt 0:00:07]} 4. Nf3 {[%emt 0:00:36]} c5 {[%emt 0:00:15]} 5. c3 {[%emt 0:00:12]} Nc6 {[%emt 0:00:09]} 6. Nbd2 {[%emt 0:00:28]} Nh5 {[%emt 0:01:12]} 7. Bg5 {[%emt 0:01:08]} f6 {[%emt 0:01:18]} 8. Bh4 {[%emt 0:00:11]} g6 {[%emt 0:00:07]} 9. Bd3 {[%emt 0:02:00]} Ng7 {[%emt 0:01:19]} 10. Bg3 {[%emt 0:04:10]} Be7 {[%emt 0:01:59]} 11. O-O {[%emt 0:01:14]} O-O {[%emt 0:00:07]} 12. Qc2 {[%emt 0:01:34]} Bd7 {[%emt 0:10:46]} 13. Rfe1 {[%emt 0:01:53]} Rc8 {[%emt 0:05:54]} 14. Qd1 {[%emt 0:05:19]} Be8 {[%emt 0:04:37]} 15. Qe2 {[%emt 0:02:59]} Bf7 {[%emt 0:03:14]} 16. a3 {[%emt 0:02:37]} Nh5 {[%emt 0:12:38]} 17. Rac1 {[%emt 0:03:22]} Re8 {[%emt 0:05:56]} 18. Bb1 {[%emt 0:05:07]} Bf8 {[%emt 0:05:19]} 19. Nb3 {[%emt 0:03:12]} Nxg3 {[%emt 0:05:26]} 20. hxg3 {[%emt 0:00:11]} c4 {[%emt 0:00:23]} 21. Nbd2 {[%emt 0:00:13]} Qb6 {[%emt 0:02:25]} 22. Nf1 {[%emt 0:03:19]} Qc7 {[%emt 0:10:46]} 23. e4 {[%emt 0:04:02]} e5 {[%emt 0:02:31]} 24. dxe5 {[%emt 0:03:46]} Nxe5 {[%emt 0:06:49]} 25. Nxe5 {[%emt 0:01:50]} Rxe5 {[%emt 0:01:40]} 26. Qf3 {[%emt 0:01:07]} dxe4 {[%emt 0:02:55]} 27. Bxe4 {[%emt 0:00:54]} Rce8 {[%emt 0:00:25]} 28. Re3 {[%emt 0:04:22]} Bc5 {[%emt 0:01:19]} 29. Bxb7 {[%emt 0:02:29]} Bxe3 {[%emt 0:01:01]} 30. Nxe3 {[%emt 0:00:12]} f5 {[%emt 0:05:43]} 31. Rd1 {[%emt 0:01:24]} Rd8 {[%emt 0:03:40]} 32. Nd5 {[%emt 0:05:18]} Bxd5 {[%emt 0:04:37]} 33. Bxd5+ {[%emt 0:00:13]} Kg7 {[%emt 0:00:13]} 34. Qf4 {[%emt 0:02:13]} Qe7 {[%emt 0:01:09]} 35. Qxc4 {[%emt 0:01:41]} Re4 {[%emt 0:00:40]} 36. Qb3 {[%emt 0:01:41]} Re1+ {[%emt 0:00:39]} 37. Kh2 {[%emt 0:00:17]} Rxd1 {[%emt 0:00:20]} 38. Qxd1 {[%emt 0:00:08]} Qc5 {[%emt 0:00:04]} 39. c4 {[%emt 0:01:21]} Qxc4 {[%emt 0:00:07]} 40. Bxc4 {[%emt 0:00:00]} Rxd1 {[%emt 0:00:00]} 41. f3 {[%emt 0:01:56]} Ra1 {[%emt 0:01:59]} 42. f4 {[%emt 0:02:10]} Kf6 {[%emt 0:00:18]} 43. Bd5 {[%emt 0:00:33]} h6 {[%emt 0:00:12]} 44. Bc4 {[%emt 0:00:18]} g5 {[%emt 0:00:53]} 45. Bd5 {[%emt 0:00:16]} Rd1 {[%emt 0:00:07]} 46. Bg8 {[%emt 0:00:47]} gxf4 {[%emt 0:00:40]} 47. gxf4 {[%emt 0:00:08]} Rd8 {[%emt 0:00:03]} 48. Bb3 {[%emt 0:01:18]} Rb8 {[%emt 0:00:06]} 49. Bc4 {[%emt 0:00:15]} Rxb2 {[%emt 0:00:08]} 50. Bd5 {[%emt 0:01:12]} Rd2 {[%emt 0:00:14]} 51. Bg8 {[%emt 0:00:37]} Rd3 {[%emt 0:00:11]} 52. a4 {[%emt 0:00:27]} Rd4 {[%emt 0:00:05]} 53. Bb3 {[%emt 0:01:02]} Rxf4 {[%emt 0:00:06]} 54. a5 {[%emt 0:00:26]} Rb4 {[%emt 0:00:20]} 55. Bc2 {[%emt 0:00:17]} Rb2 {[%emt 0:00:19]} 56. Bd3 {[%emt 0:00:10]} Kg5 {[%emt 0:00:38]} 57. a6 {[%emt 0:00:18]} Kg4 {[%emt 0:00:07]} 58. Bc4 {[%emt 0:00:25]} h5 {[%emt 0:00:09]} 59. Bd5 {[%emt 0:00:14]} h4 {[%emt 0:00:56]} 60. Bf3+ {[%emt 0:00:16]} Kg5 {[%emt 0:00:05]} 61. Bb7 {[%emt 0:00:23]} Rb3 {[%emt 0:00:19]} 62. Bf3 {[%emt 0:00:41]} Kf4 {[%emt 0:00:42]} 63. Bb7 {[%emt 0:00:18]} Ra3 {[%emt 0:00:27]} 64. Bc8 {[%emt 0:00:55]} Kg4 {[%emt 0:00:09]} 65. Bb7 {[%emt 0:00:11]} h3 {[%emt 0:00:43]} 66. Bf3+ {[%emt 0:00:25]} Rxf3 {[%emt 0:00:33]} 67. gxf3+ {[%emt 0:00:09]} Kxf3 {[%emt 0:00:04]} 68. Kxh3 {[%emt 0:00:07]} f4 {[%emt 0:00:06]} 69. Kh2 {[%emt 0:00:05]} Ke2 {[%emt 0:00:07]} 70. Kg1 {[%emt 0:00:18]} f3 {[%emt 0:00:07]} 71. Kh1 {[%emt 0:00:08]} f2 {[%emt 0:00:04]} 72. Kh2 {[%emt 0:00:05]} f1=Q {[%emt 0:00:08]} 0-1

[Event "FIDE WYCC Girls U14 2023"]
[Site "Montesilvano"]
[Date "2023.11.14"]
[Round "2.28"]
[White "Avetisyan, Ani"]
[Black "Dimatangihan Anica Shey"]
[Result "1-0"]
[ECO "E70"]
[WhiteElo "1770"]
[BlackElo "1091"]
[Annotator "NA"]
[PlyCount "121"]
[EventDate "2023.11.13"]
[EventType "swiss"]
[EventCountry "ITA"]
[SourceTitle "playchess.com"]
[Source "ChessBase"]
[SourceQuality "1"]
[TimeControl "40/5400+30:1800+30"]

1. d4 {[%emt 0:00:04]} Nf6 {[%emt 0:00:36]} 2. c4 {[%emt 0:00:09]} g6 {[%emt 0:00:11]} 3. Nc3 {[%emt 0:00:13]} Bg7 {[%emt 0:00:35]} 4. e4 {[%emt 0:00:11]} d6 {[%emt 0:00:05]} 5. Nge2 {[%emt 0:00:11]} O-O {[%emt 0:00:14]} 6. Ng3 {[%emt 0:00:07]} e5 {[%emt 0:00:18]} 7. d5 {[%emt 0:00:08]} a5 {[%emt 0:00:17]} 8. h4 {[%emt 0:01:11]} h5 {[%emt 0:00:11]} 9. Bg5 {[%emt 0:00:33]} Qe8 {[%emt 0:00:29]} 10. Be2 {[%emt 0:02:01]} Na6 {[%emt 0:01:24]} 11. Qd2 {[%emt 0:13:37]} Bd7 {[%emt 0:03:05]} 12. Rb1 {[%emt 0:08:34]} Nc5 {[%emt 0:01:34]} 13. b3 {[%emt 0:04:11]} b6 {[%emt 0:07:19]} 14. a3 {[%emt 0:06:51]} a4 {[%emt 0:03:58]} 15. b4 {[%emt 0:01:48]} Nb3 {[%emt 0:01:24]} 16. Qd3 {[%emt 0:04:25]} Qc8 {[%emt 0:10:48]} 17. Nb5 {[%emt 0:06:39]} Bxb5 {[%emt 0:04:27]} 18. cxb5 {[%emt 0:00:10]} Qd7 {[%emt 0:01:32]} 19. Rh3 {[%emt 0:18:08]} Rfc8 {[%emt 0:05:36]} 20. Nf1 {[%emt 0:15:17]} Nd4 {[%emt 0:03:20]} 21. Nd2 {[%emt 0:01:07]} Qe8 {[%emt 0:06:11]} 22. Rg3 {[%emt 0:02:27]} Nh7 {[%emt 0:02:22]} 23. Be3 {[%emt 0:00:58]} Nxe2 {[%emt 0:01:29]} 24. Qxe2 {[%emt 0:00:01]} Qe7 {[%emt 0:00:28]} 25. Nf3 {[%emt 0:01:27]} Qd7 {[%emt 0:03:15]} 26. Nd2 {[%emt 0:00:45]} Nf6 {[%emt 0:03:19]} 27. Bg5 {[%emt 0:01:10]} Kf8 {[%emt 0:01:33]} 28. Rc1 {[%emt 0:01:29]} Ng8 {[%emt 0:01:54]} 29. Rgc3 {[%emt 0:02:31]} Ra7 {[%emt 0:01:50]} 30. Nc4 {[%emt 0:01:35]} Rb7 {[%emt 0:03:07]} 31. Kf1 {[%emt 0:04:25]} Ne7 {[%emt 0:02:18]} 32. Nd2 {[%emt 0:00:56]} Re8 {[%emt 0:01:09]} 33. Qd1 {[%emt 0:00:27]} Qxb5+ {[%emt 0:00:48]} 34. Kg1 {[%emt 0:00:13]} Rc8 {[%emt 0:01:08]} 35. Nc4 {[%emt 0:00:33]} Qd7 {[%emt 0:01:06]} 36. Nb2 {[%emt 0:00:59]} b5 {[%emt 0:00:48]} 37. Qe2 {[%emt 0:02:19]} Ng8 {[%emt 0:05:48]} 38. Qd3 {[%emt 0:01:06]} Nf6 {[%emt 0:01:40]} 39. Rc6 {[%emt 0:00:26]} Ng8 {[%emt 0:03:33]} 40. Nd1 {[%emt 0:00:00]} Ne7 {[%emt 0:00:00]} 41. R6c2 {[%emt 0:04:11]} Ke8 {[%emt 0:04:12]} 42. Nc3 {[%emt 0:01:28]} Rb6 {[%emt 0:01:11]} 43. Ne2 {[%emt 0:02:01]} c6 {[%emt 0:02:26]} 44. Bxe7 {[%emt 0:07:47]} Kxe7 {[%emt 0:00:25]} 45. dxc6 {[%emt 0:00:48]} Rbxc6 {[%emt 0:01:22]} 46. Rxc6 {[%emt 0:01:32]} Rxc6 {[%emt 0:00:21]} 47. Nc3 {[%emt 0:00:01]} Qb7 {[%emt 0:03:49]} 48. Rd1 {[%emt 0:01:08]} Bf8 {[%emt 0:09:30]} 49. Nxb5 {[%emt 0:01:49]} Qa6 {[%emt 0:01:12]} 50. Nd4 {[%emt 0:02:24]} exd4 {[%emt 0:00:54]} 51. b5 {[%emt 0:00:01]} Qb6 {[%emt 0:07:11]} 52. bxc6 {[%emt 0:00:06]} Qxc6 {[%emt 0:00:14]} 53. Qxd4 {[%emt 0:00:07]} f6 {[%emt 0:04:59]} 54. Qa7+ {[%emt 0:00:22]} Ke6 {[%emt 0:01:05]} 55. Qa5 {[%emt 0:01:08]} Ke7 {[%emt 0:01:30]} 56. Qd5 {[%emt 0:00:49]} Qb6 {[%emt 0:00:38]} 57. Rd4 {[%emt 0:01:59]} Qc7 {[%emt 0:02:18]} 58. Rc4 {[%emt 0:00:19]} Qd7 {[%emt 0:01:41]} 59. Rb4 {[%emt 0:01:37]} Qd8 {[%emt 0:04:12]} 60. Rb7+ {[%emt 0:00:41]} Ke8 {[%emt 0:00:16]} 61. Qf7# 1-0

[Event "FIDE WYCC Girls U14 2023"]
[Site "Montesilvano"]
[Date "2023.11.14"]
[Round "2.29"]
[White "Chasouraki, Chrysi"]
[Black "Jankovic, Tamara"]
[Result "1/2-1/2"]
[ECO "B62"]
[WhiteElo "1559"]
[BlackElo "1711"]
[Annotator "NA"]
[PlyCount "113"]
[EventDate "2023.11.13"]
[EventType "swiss"]
[EventCountry "ITA"]
[SourceTitle "playchess.com"]
[Source "ChessBase"]
[SourceQuality "1"]
[TimeControl "40/5400+30:1800+30"]

1. e4 {[%emt 0:00:02]} c5 {[%emt 0:00:08]} 2. Nf3 {[%emt 0:00:04]} d6 {[%emt 0:00:07]} 3. d4 {[%emt 0:00:07]} cxd4 4. Nxd4 {[%emt 0:00:04]} Nf6 {[%emt 0:00:13]} 5. Nc3 {[%emt 0:00:05]} Nc6 {[%emt 0:00:05]} 6. Bg5 {[%emt 0:00:05]} e6 {[%emt 0:00:06]} 7. Qd3 {[%emt 0:00:04]} h6 8. Nxc6 {[%emt 0:06:10]} bxc6 {[%emt 0:00:47]} 9. Bf4 {[%emt 0:00:08]} a6 {[%emt 0:13:38]} 10. O-O-O {[%emt 0:00:36]} d5 {[%emt 0:00:20]} 11. Be2 {[%emt 0:00:53]} Bb4 {[%emt 0:04:30]} 12. Qg3 {[%emt 0:01:03]} Rg8 {[%emt 0:10:20]} 13. exd5 {[%emt 0:17:57]} cxd5 {[%emt 0:03:10]} 14. Bc7 {[%emt 0:07:33]} Qe7 {[%emt 0:08:24]} 15. Be5 {[%emt 0:10:57]} Bb7 {[%emt 0:13:15]} 16. Bf3 {[%emt 0:13:07]} Rd8 {[%emt 0:12:51]} 17. Rhe1 {[%emt 0:04:18]} Bd6 {[%emt 0:06:04]} 18. Rd2 {[%emt 0:18:58]} Kf8 {[%emt 0:09:17]} 19. Bd1 {[%emt 0:02:38]} Bxe5 {[%emt 0:01:51]} 20. Qxe5 {[%emt 0:00:56]} Qd6 {[%emt 0:01:03]} 21. Qd4 {[%emt 0:01:18]} Rc8 {[%emt 0:04:14]} 22. f4 {[%emt 0:01:56]} Qc5 {[%emt 0:01:22]} 23. Qd3 {[%emt 0:04:03]} Qc4 {[%emt 0:04:37]} 24. Qe3 {[%emt 0:02:15]} Qc5 {[%emt 0:02:10]} 25. Rd4 {[%emt 0:01:35]} Nd7 {[%emt 0:02:00]} 26. g4 {[%emt 0:01:56]} Re8 {[%emt 0:01:19]} 27. Qd2 {[%emt 0:02:01]} Nb6 {[%emt 0:00:49]} 28. h4 {[%emt 0:01:17]} Nc4 {[%emt 0:00:28]} 29. Rxc4 {[%emt 0:02:14]} Qxc4 {[%emt 0:00:35]} 30. Bf3 {[%emt 0:00:26]} Qc7 {[%emt 0:00:42]} 31. f5 {[%emt 0:00:32]} d4 {[%emt 0:00:48]} 32. Bxb7 {[%emt 0:00:38]} dxc3 {[%emt 0:00:24]} 33. Qg2 {[%emt 0:00:20]} cxb2+ {[%emt 0:00:05]} 34. Kb1 {[%emt 0:00:13]} e5 {[%emt 0:01:01]} 35. Bxa6 {[%emt 0:00:36]} Rd8 {[%emt 0:00:33]} 36. Qe2 {[%emt 0:00:37]} Re8 {[%emt 0:00:40]} 37. Qd2 {[%emt 0:00:31]} Qb6 {[%emt 0:00:17]} 38. Bc4 {[%emt 0:00:21]} Rd8 {[%emt 0:00:45]} 39. Qc3 {[%emt 0:00:50]} Qd4 {[%emt 0:00:28]} 40. Qb4+ {[%emt 0:00:00]} Qd6 {[%emt 0:00:00]} 41. Qxd6+ {[%emt 0:01:41]} Rxd6 {[%emt 0:00:17]} 42. Rxe5 {[%emt 0:00:06]} g6 {[%emt 0:02:44]} 43. fxg6 {[%emt 0:01:42]} Rgxg6 {[%emt 0:05:41]} 44. Re4 {[%emt 0:00:59]} Rd1+ {[%emt 0:15:45]} 45. Kxb2 {[%emt 0:00:07]} Rg1 {[%emt 0:00:02]} 46. Be2 {[%emt 0:06:27]} Re6 {[%emt 0:00:56]} 47. Rxe6 {[%emt 0:01:46]} fxe6 {[%emt 0:00:03]} 48. a4 {[%emt 0:02:56]} Ke7 {[%emt 0:00:23]} 49. a5 {[%emt 0:03:51]} Kd6 {[%emt 0:00:51]} 50. a6 {[%emt 0:01:21]} Kc7 {[%emt 0:00:28]} 51. Kc3 {[%emt 0:00:28]} Rg3+ {[%emt 0:02:42]} 52. Kd4 {[%emt 0:03:34]} Rh3 {[%emt 0:03:35]} 53. h5 {[%emt 0:00:58]} Rh2 {[%emt 0:00:06]} 54. Ke3 {[%emt 0:07:04]} Rh3+ {[%emt 0:00:57]} 55. Kf4 {[%emt 0:01:19]} Rc3 {[%emt 0:01:59]} 56. Bd3 {[%emt 0:03:02]} Rc5 {[%emt 0:00:10]} 57. Ke4 {[%emt 0:00:59]} 1/2-1/2

[Event "FIDE WYCC Girls U14 2023"]
[Site "Montesilvano"]
[Date "2023.11.14"]
[Round "2.30"]
[White "Agamyradova, Mahri"]
[Black "Hong, Jueun"]
[Result "1-0"]
[ECO "D02"]
[WhiteElo "1652"]
[BlackElo "1299"]
[Annotator "NA"]
[PlyCount "93"]
[EventDate "2023.11.13"]
[EventType "swiss"]
[EventCountry "ITA"]
[SourceTitle "playchess.com"]
[Source "ChessBase"]
[SourceQuality "1"]
[TimeControl "40/5400+30:1800+30"]

1. d4 {[%emt 0:00:01]} Nf6 {[%emt 0:00:06]} 2. Nf3 {[%emt 0:00:06]} d5 {[%emt 0:00:14]} 3. Bf4 {[%emt 0:00:06]} e6 {[%emt 0:00:09]} 4. e3 {[%emt 0:00:05]} Bd6 {[%emt 0:00:09]} 5. Ne5 {[%emt 0:00:05]} O-O {[%emt 0:00:12]} 6. Bd3 {[%emt 0:00:22]} c5 {[%emt 0:00:25]} 7. c3 {[%emt 0:00:04]} Nc6 {[%emt 0:00:44]} 8. Nd2 {[%emt 0:00:30]} Qc7 {[%emt 0:00:30]} 9. Ndf3 {[%emt 0:00:00]} cxd4 10. exd4 {[%emt 0:00:43]} Ne4 {[%emt 0:00:55]} 11. Bg3 {[%emt 0:04:46]} f6 {[%emt 0:04:18]} 12. Nxc6 {[%emt 0:00:15]} bxc6 {[%emt 0:00:02]} 13. Bxd6 {[%emt 0:05:46]} Qxd6 {[%emt 0:00:57]} 14. O-O {[%emt 0:00:10]} a5 {[%emt 0:12:15]} 15. Qe2 {[%emt 0:06:32]} f5 {[%emt 0:05:47]} 16. c4 {[%emt 0:06:43]} c5 {[%emt 0:08:11]} 17. dxc5 {[%emt 0:03:45]} Nxc5 {[%emt 0:02:43]} 18. cxd5 {[%emt 0:01:41]} Nxd3 {[%emt 0:03:31]} 19. Qxd3 {[%emt 0:09:31]} Ba6 {[%emt 0:00:25]} 20. Qe3 {[%emt 0:00:55]} Bxf1 {[%emt 0:00:23]} 21. Rxf1 {[%emt 0:00:11]} exd5 {[%emt 0:01:40]} 22. Rd1 {[%emt 0:00:22]} g6 {[%emt 0:04:53]} 23. Qd4 {[%emt 0:02:02]} Rfd8 {[%emt 0:00:41]} 24. Ne5 {[%emt 0:00:40]} Rac8 {[%emt 0:01:31]} 25. h3 {[%emt 0:01:33]} Qb4 {[%emt 0:02:02]} 26. Qa7 {[%emt 0:00:25]} Rf8 {[%emt 0:06:48]} 27. Qd7 {[%emt 0:03:35]} Qxb2 {[%emt 0:21:03]} 28. Qxd5+ {[%emt 0:09:49]} Kh8 {[%emt 0:01:32]} 29. Nf7+ {[%emt 0:00:38]} Kg7 {[%emt 0:02:35]} 30. Ng5 {[%emt 0:00:19]} Kh8 {[%emt 0:03:50]} 31. Qd7 {[%emt 0:03:59]} Qg7 {[%emt 0:01:54]} 32. Qxg7+ {[%emt 0:00:06]} Kxg7 {[%emt 0:00:01]} 33. Ne6+ {[%emt 0:00:08]} Kh6 {[%emt 0:01:39]} 34. Nxf8 {[%emt 0:00:12]} Rxf8 {[%emt 0:00:01]} 35. Rd5 {[%emt 0:01:01]} Ra8 {[%emt 0:00:15]} 36. f4 {[%emt 0:00:22]} Ra7 {[%emt 0:02:10]} 37. Kf2 {[%emt 0:00:37]} Kh5 {[%emt 0:00:54]} 38. g4+ {[%emt 0:05:01]} Kh4 {[%emt 0:01:04]} 39. gxf5 {[%emt 0:00:09]} gxf5 {[%emt 0:01:02]} 40. Rxf5 {[%emt 0:00:00]} Kxh3 {[%emt 0:00:00]} 41. Kf3 {[%emt 0:01:34]} Kh2 {[%emt 0:00:54]} 42. Rh5+ {[%emt 0:01:09]} Kg1 {[%emt 0:00:03]} 43. f5 {[%emt 0:00:30]} a4 {[%emt 0:02:31]} 44. f6 {[%emt 0:00:10]} Rf7 {[%emt 0:01:21]} 45. Rf5 {[%emt 0:00:04]} h5 {[%emt 0:00:15]} 46. Kg3 {[%emt 0:00:03]} a3 {[%emt 0:00:35]} 47. Kh4 1-0

[Event "FIDE WYCC Girls U14 2023"]
[Site "Montesilvano"]
[Date "2023.11.14"]
[Round "2.31"]
[White "Abou Taam, Fatima"]
[Black "Khamdamova, Afruza"]
[Result "0-1"]
[ECO "C55"]
[WhiteElo "1342"]
[BlackElo "2199"]
[Annotator "ChessBase"]
[PlyCount "70"]
[EventDate "2023.11.13"]
[EventType "swiss"]
[EventCountry "ITA"]
[SourceTitle "playchess.com"]
[Source "ChessBase"]
[SourceQuality "1"]
[TimeControl "40/5400+30:1800+30"]

1. e4 {[%emt 0:01:28]} e5 {[%emt 0:00:04]} 2. Nf3 {[%emt 0:01:37]} Nc6 3. Bc4 {[%emt 0:01:20]} Nf6 {[%emt 0:00:53]} 4. d4 {[%emt 0:03:53]} exd4 {[%emt 0:05:16]} 5. e5 {[%emt 0:00:39]} d5 {[%emt 0:00:18]} 6. Bb5 {[%emt 0:01:37]} Ne4 {[%emt 0:00:35]} 7. Nxd4 {[%emt 0:01:47]} Bd7 {[%emt 0:00:15]} 8. Nxc6 {[%emt 0:08:29]} bxc6 {[%emt 0:01:23]} 9. Bd3 {[%emt 0:00:43]} Bc5 {[%emt 0:06:34]} 10. O-O {[%emt 0:01:51]} Qh4 {[%emt 0:09:38]} 11. Bxe4 {[%emt 0:03:47]} dxe4 {[%emt 0:07:47]} 12. Nc3 {[%emt 0:06:08]} Bf5 {[%emt 0:06:00]} 13. Qe2 {[%emt 0:03:01]} O-O {[%emt 0:00:56]} 14. Be3 {[%emt 0:05:18]} Bb6 {[%emt 0:03:22]} 15. Bxb6 {[%emt 0:06:06]} cxb6 {[%emt 0:00:06]} 16. Qc4 {[%emt 0:00:20]} Qe7 {[%emt 0:05:41]} 17. Nxe4 {[%emt 0:10:10]} Qxe5 {[%emt 0:00:15]} 18. Ng3 {[%emt 0:05:07]} Be6 {[%emt 0:01:04]} 19. Qb4 {[%emt 0:07:53]} c5 {[%emt 0:02:41]} 20. Qa3 {[%emt 0:01:23]} Rfd8 {[%emt 0:04:26]} 21. Rfe1 {[%emt 0:01:01]} Qf6 {[%emt 0:06:08]} 22. Re3 {[%emt 0:04:01]} Qg6 {[%emt 0:03:59]} 23. Qc3 {[%emt 0:01:42]} Rd4 {[%emt 0:01:39]} 24. Rae1 {[%emt 0:01:24]} h5 {[%emt 0:00:40]} 25. Re4 {[%emt 0:04:23]} h4 {[%emt 0:03:04]} 26. Rxd4 {[%emt 0:02:27]} cxd4 {[%emt 0:00:04]} 27. Qc6 {[%emt 0:00:04]} Rc8 {[%emt 0:00:51]} 28. Qd6 {[%emt 0:00:57]} hxg3 {[%emt 0:00:09]} 29. hxg3 {[%emt 0:00:38]} Qf6 {[%emt 0:00:41]} 30. Re2 {[%emt 0:01:24]} Bf5 {[%emt 0:05:20]} 31. Qa3 {[%emt 0:01:24]} Bxc2 {[%emt 0:00:41]} 32. Qa6 {[%emt 0:00:29]} Bf5 {[%emt 0:00:10]} 33. f3 {[%emt 0:01:19]} d3 {[%emt 0:00:08]} 34. Rd2 {[%emt 0:01:01]} Rc1+ {[%emt 0:00:10]} 35. Kf2 {[%emt 0:00:09]} Qd4# {[%emt 0:00:09]} 0-1

[Event "FIDE WYCC Girls U14 2023"]
[Site "Montesilvano"]
[Date "2023.11.14"]
[Round "2.32"]
[White "Toth, Lili"]
[Black "Canossa, Elena"]
[Result "1-0"]
[ECO "C42"]
[WhiteElo "2199"]
[BlackElo "1326"]
[Annotator "ChessBase"]
[PlyCount "75"]
[EventDate "2023.11.13"]
[EventType "swiss"]
[EventCountry "ITA"]
[SourceTitle "playchess.com"]
[Source "ChessBase"]
[SourceQuality "1"]
[TimeControl "40/5400+30:1800+30"]

1. e4 {[%emt 0:00:03]} e5 {[%emt 0:00:06]} 2. Nf3 {[%emt 0:00:07]} Nf6 {[%emt 0:00:09]} 3. Nc3 d5 {[%emt 0:08:05]} 4. exd5 {[%emt 0:08:31]} Nxd5 {[%emt 0:04:39]} 5. Nxe5 {[%emt 0:03:41]} Nxc3 {[%emt 0:03:36]} 6. bxc3 {[%emt 0:01:30]} Bd6 {[%emt 0:02:29]} 7. Nc4 {[%emt 0:05:35]} O-O {[%emt 0:01:53]} 8. Nxd6 {[%emt 0:02:08]} Qxd6 {[%emt 0:01:36]} 9. Be2 {[%emt 0:00:14]} Nc6 {[%emt 0:00:58]} 10. d4 {[%emt 0:01:57]} Re8 {[%emt 0:02:41]} 11. O-O {[%emt 0:00:15]} Bf5 {[%emt 0:07:40]} 12. Be3 {[%emt 0:08:01]} Rad8 {[%emt 0:07:38]} 13. a4 {[%emt 0:08:02]} Re6 {[%emt 0:10:56]} 14. Re1 {[%emt 0:05:20]} Qd5 {[%emt 0:08:01]} 15. c4 {[%emt 0:02:46]} Qd7 {[%emt 0:00:35]} 16. d5 {[%emt 0:03:03]} Ree8 {[%emt 0:14:48]} 17. dxc6 {[%emt 0:05:15]} Qxc6 {[%emt 0:01:07]} 18. Qb1 {[%emt 0:01:08]} a5 {[%emt 0:07:15]} 19. Bf3 {[%emt 0:02:39]} Qxc4 {[%emt 0:02:05]} 20. Qxb7 {[%emt 0:00:18]} Rb8 {[%emt 0:02:32]} 21. Qc6 {[%emt 0:01:25]} Qxc2 {[%emt 0:02:00]} 22. Rac1 {[%emt 0:02:23]} Qxc6 23. Bxc6 {[%emt 0:00:35]} Red8 {[%emt 0:01:35]} 24. h3 {[%emt 0:00:21]} Rd6 {[%emt 0:04:47]} 25. Bf4 {[%emt 0:00:16]} Re6 {[%emt 0:01:46]} 26. Rxe6 {[%emt 0:00:19]} Bxe6 {[%emt 0:00:22]} 27. Bxc7 {[%emt 0:00:16]} Rc8 {[%emt 0:00:17]} 28. Rd1 {[%emt 0:00:36]} g6 {[%emt 0:00:25]} 29. Rd8+ {[%emt 0:00:04]} Rxd8 {[%emt 0:00:24]} 30. Bxd8 {[%emt 0:00:01]} f5 {[%emt 0:00:29]} 31. Bxa5 {[%emt 0:00:05]} Kf7 {[%emt 0:00:59]} 32. Bc7 {[%emt 0:00:01]} Kf6 {[%emt 0:00:42]} 33. a5 {[%emt 0:00:02]} Kg5 {[%emt 0:00:29]} 34. a6 {[%emt 0:00:03]} Kh5 {[%emt 0:00:31]} 35. a7 {[%emt 0:00:12]} h6 {[%emt 0:00:19]} 36. a8=Q {[%emt 0:00:05]} Kg5 {[%emt 0:01:21]} 37. Qd8+ {[%emt 0:00:12]} Kh5 {[%emt 0:00:26]} 38. Bf3# {[%emt 0:00:03]} 1-0

[Event "FIDE WYCC Girls U14 2023"]
[Site "Montesilvano"]
[Date "2023.11.14"]
[Round "2.33"]
[White "Goriachkina, Oksana"]
[Black "Michalska, Lena"]
[Result "1-0"]
[ECO "A05"]
[WhiteElo "1915"]
[BlackElo "1640"]
[Annotator "NA"]
[PlyCount "71"]
[EventDate "2023.11.13"]
[EventType "swiss"]
[EventCountry "ITA"]
[SourceTitle "playchess.com"]
[Source "ChessBase"]
[SourceQuality "1"]
[TimeControl "40/5400+30:1800+30"]

1. Nf3 {[%emt 0:00:01]} Nf6 {[%emt 0:00:50]} 2. g3 {[%emt 0:00:06]} c5 {[%emt 0:01:13]} 3. c4 g6 {[%emt 0:05:17]} 4. Bg2 {[%emt 0:00:36]} Bg7 {[%emt 0:00:06]} 5. d4 {[%emt 0:00:18]} cxd4 {[%emt 0:00:19]} 6. Nxd4 {[%emt 0:00:05]} Nc6 {[%emt 0:03:58]} 7. Nc3 {[%emt 0:00:23]} O-O {[%emt 0:02:21]} 8. Nc2 {[%emt 0:01:33]} d6 {[%emt 0:02:13]} 9. O-O {[%emt 0:00:35]} Be6 {[%emt 0:03:51]} 10. b3 {[%emt 0:06:45]} Qd7 {[%emt 0:06:32]} 11. Re1 {[%emt 0:17:21]} Rfd8 {[%emt 0:03:24]} 12. e4 {[%emt 0:02:46]} Bh3 {[%emt 0:15:46]} 13. Bb2 {[%emt 0:01:48]} Bxg2 {[%emt 0:01:33]} 14. Kxg2 {[%emt 0:00:01]} e6 {[%emt 0:01:28]} 15. Qe2 {[%emt 0:15:40]} a6 {[%emt 0:09:40]} 16. Rad1 {[%emt 0:01:50]} Qc7 {[%emt 0:00:53]} 17. Ne3 {[%emt 0:04:44]} Ne7 {[%emt 0:05:30]} 18. Qf3 {[%emt 0:05:28]} Qc6 {[%emt 0:04:48]} 19. Ncd5 {[%emt 0:06:14]} exd5 {[%emt 0:07:21]} 20. exd5 {[%emt 0:00:32]} Nfxd5 {[%emt 0:02:38]} 21. cxd5 {[%emt 0:17:20]} Qd7 {[%emt 0:00:11]} 22. Bf6 {[%emt 0:02:13]} Bxf6 {[%emt 0:15:04]} 23. Qxf6 {[%emt 0:00:05]} Nc8 {[%emt 0:00:17]} 24. Ng4 {[%emt 0:01:13]} h5 {[%emt 0:01:18]} 25. Nh6+ {[%emt 0:00:32]} Kh7 {[%emt 0:00:04]} 26. Nxf7 {[%emt 0:00:18]} Rg8 {[%emt 0:01:20]} 27. Ng5+ {[%emt 0:05:33]} Kh6 {[%emt 0:00:08]} 28. Re6 {[%emt 0:00:18]} b5 {[%emt 0:02:32]} 29. Qf4 {[%emt 0:01:59]} Ra7 {[%emt 0:02:33]} 30. Ne4+ {[%emt 0:01:26]} Kg7 {[%emt 0:00:15]} 31. Nf6 {[%emt 0:00:27]} Rf8 {[%emt 0:00:33]} 32. Qg5 {[%emt 0:01:26]} Qf7 {[%emt 0:00:22]} 33. Nxh5+ {[%emt 0:00:10]} Kh7 {[%emt 0:00:34]} 34. Rf6 {[%emt 0:01:30]} Qe8 {[%emt 0:01:49]} 35. Re1 {[%emt 0:00:28]} Ne7 {[%emt 0:00:35]} 36. Rfe6 {[%emt 0:00:11]} 1-0